[Event "Titled Tuesday Blitz June 13 Early 2023"]
[White "Herzog2012"]
[Black "Itgelt, Khuyagtsogt"]
[BlackFideId "4902912"]
[WhiteElo "2441"]
[BlackElo "2227"]
[Result "1/2-1/2"]
[Round "10"]
[TimeControl "180+2"]
[Date "2023.06.13"]
[WhiteClock "0:00:19"]
[BlackClock "0:00:12"]
[Board "36"]

1. e4 {[%clk 0:03:00]}  d6 {[%clk 0:02:40]} 2. d4 {[%clk 0:03:00]}  Nf6 {[%clk 0:02:37]} 3. Nc3 {[%clk 0:03:00]}  e6 {[%clk 0:02:36]} 4. g3 {[%clk 0:02:47]}  c6 {[%clk 0:02:33]} 5. Bg2 {[%clk 0:02:47]}  d5 {[%clk 0:02:34]} 6. Nge2 {[%clk 0:02:42]}  Be7 {[%clk 0:02:31]} 7. O-O {[%clk 0:02:42]}  b6 {[%clk 0:02:31]} 8. Bf4 {[%clk 0:02:29]}  Bb7 {[%clk 0:02:28]} 9. Re1 {[%clk 0:02:28]}  O-O {[%clk 0:02:28]} 10. Qd3 {[%clk 0:02:19]}  Na6 {[%clk 0:02:26]} 11. a3 {[%clk 0:02:18]}  c5 {[%clk 0:02:22]} 12. exd5 {[%clk 0:02:17]}  Nxd5 {[%clk 0:02:15]} 13. Nxd5 {[%clk 0:02:16]}  exd5 {[%clk 0:02:16]} 14. Nc3 {[%clk 0:02:07]}  Bf6 {[%clk 0:02:04]} 15. Be5 {[%clk 0:01:49]}  Nc7 {[%clk 0:01:49]} 16. dxc5 {[%clk 0:01:23]}  bxc5 {[%clk 0:01:50]} 17. Bxc7 {[%clk 0:01:15]}  Qxc7 {[%clk 0:01:51]} 18. Nxd5 {[%clk 0:01:06]}  Bxd5 {[%clk 0:01:50]} 19. Bxd5 {[%clk 0:01:04]}  Rab8 {[%clk 0:01:38]} 20. c4 {[%clk 0:00:52]}  Rxb2 {[%clk 0:01:34]} 21. Rab1 {[%clk 0:00:51]}  Qb8 {[%clk 0:01:18]} 22. Qf5 {[%clk 0:00:38]}  g6 {[%clk 0:01:08]} 23. Qd3 {[%clk 0:00:16]}  Bd4 {[%clk 0:01:03]} 24. Rxb2 {[%clk 0:00:15]}  Qxb2 {[%clk 0:01:04]} 25. Re2 {[%clk 0:00:16]}  Qb6 {[%clk 0:00:36]} 26. Kg2 {[%clk 0:00:14]}  Kg7 {[%clk 0:00:32]} 27. Qf3 {[%clk 0:00:15]}  Bf6 {[%clk 0:00:31]} 28. h4 {[%clk 0:00:13]}  h5 {[%clk 0:00:31]} 29. Re3 {[%clk 0:00:09]}  Qb2 {[%clk 0:00:26]} 30. Rb3 {[%clk 0:00:09]}  Qd4 {[%clk 0:00:17]} 31. Rb7 {[%clk 0:00:10]}  a5 {[%clk 0:00:16]} 32. Qe2 {[%clk 0:00:08]}  Be5 {[%clk 0:00:12]} 33. Qf3 {[%clk 0:00:07]}  Bf6 {[%clk 0:00:12]} 34. Ra7 {[%clk 0:00:07]}  Qc3 {[%clk 0:00:10]} 35. Qxc3 {[%clk 0:00:05]}  Bxc3 {[%clk 0:00:11]} 36. Kf3 {[%clk 0:00:02]}  Kf6 {[%clk 0:00:07]} 37. Ke4 {[%clk 0:00:02]}  Re8+ {[%clk 0:00:07]} 38. Kd3 {[%clk 0:00:03]}  Bd4 {[%clk 0:00:03]} 39. Rxf7+ {[%clk 0:00:03]}  Ke5 {[%clk 0:00:04]} 40. f4+ {[%clk 0:00:04]}  Kd6 {[%clk 0:00:04]} 41. Ra7 {[%clk 0:00:04]}  Re3+ {[%clk 0:00:04]} 42. Kd2 {[%clk 0:00:04]}  Rxa3 {[%clk 0:00:04]} 43. Ra6+ {[%clk 0:00:03]}  Kc7 {[%clk 0:00:04]} 44. Rxg6 {[%clk 0:00:04]}  Bf2 {[%clk 0:00:03]} 45. Rg7+ {[%clk 0:00:03]}  Kd6 {[%clk 0:00:03]} 46. Rg6+ {[%clk 0:00:03]}  Kd7 {[%clk 0:00:04]} 47. f5 {[%clk 0:00:03]}  Rxg3 {[%clk 0:00:04]} 48. Rxg3 {[%clk 0:00:02]}  Bxg3 {[%clk 0:00:05]} 49. Bf7 {[%clk 0:00:02]}  Bxh4 {[%clk 0:00:04]} 50. Bxh5 {[%clk 0:00:03]}  Kd6 {[%clk 0:00:04]} 51. Kd3 {[%clk 0:00:03]}  Ke5 {[%clk 0:00:04]} 52. Be8 {[%clk 0:00:03]}  Kxf5 {[%clk 0:00:04]} 53. Ba4 {[%clk 0:00:04]}  Ke5 {[%clk 0:00:04]} 54. Bb5 {[%clk 0:00:04]}  Bg5 {[%clk 0:00:05]} 55. Kc2 {[%clk 0:00:05]}  Kd4 {[%clk 0:00:05]} 56. Kb3 {[%clk 0:00:06]}  Bd2 {[%clk 0:00:06]} 57. Ba4 {[%clk 0:00:07]}  Bb4 {[%clk 0:00:06]} 58. Bb5 {[%clk 0:00:07]}  Kd3 {[%clk 0:00:06]} 59. Ba4 {[%clk 0:00:08]}  Kd2 {[%clk 0:00:07]} 60. Bb5 {[%clk 0:00:09]}  Kc1 {[%clk 0:00:07]} 61. Ba4 {[%clk 0:00:10]}  Kb1 {[%clk 0:00:08]} 62. Bb5 {[%clk 0:00:11]}  Kc1 {[%clk 0:00:08]} 63. Ba4 {[%clk 0:00:12]}  Kd2 {[%clk 0:00:09]} 64. Bb5 {[%clk 0:00:13]}  Kd3 {[%clk 0:00:09]} 65. Ba4 {[%clk 0:00:14]}  Kd4 {[%clk 0:00:10]} 66. Bb5 {[%clk 0:00:15]}  Bd2 {[%clk 0:00:10]} 67. Ba4 {[%clk 0:00:16]}  Bc3 {[%clk 0:00:11]} 68. Bb5 {[%clk 0:00:16]}  Bb4 {[%clk 0:00:11]} 69. Ba4 {[%clk 0:00:17]}  Bc3 {[%clk 0:00:12]} 70. Bb5 {[%clk 0:00:18]}  Bb4 {[%clk 0:00:13]} 71. Ba4 {[%clk 0:00:19]}  Bc3 {[%clk 0:00:12]} 1/2-1/2


[Site "https://www.chess.com"]

[Event "Titled Tuesday Blitz June 13 Early 2023"]
[White "Vignesh N R"]
[Black "Kumsiashvili, Nikoloz"]
[WhiteFideId "25012215"]
[BlackFideId "13600621"]
[WhiteElo "2415"]
[BlackElo "2299"]
[Result "1-0"]
[Round "10"]
[TimeControl "180+2"]
[Date "2023.06.13"]
[WhiteClock "0:00:14"]
[BlackClock "0:00:08"]
[Board "40"]

1. Nf3 {[%clk 0:03:00]}  Nf6 {[%clk 0:02:58]} 2. g3 {[%clk 0:02:58]}  d5 {[%clk 0:02:57]} 3. Bg2 {[%clk 0:02:58]}  c6 {[%clk 0:02:57]} 4. O-O {[%clk 0:02:58]}  Bf5 {[%clk 0:02:56]} 5. c4 {[%clk 0:02:57]}  e6 {[%clk 0:02:54]} 6. Qb3 {[%clk 0:02:57]}  Qb6 {[%clk 0:02:52]} 7. d3 {[%clk 0:02:57]}  Nbd7 {[%clk 0:02:49]} 8. Be3 {[%clk 0:02:57]}  Bc5 {[%clk 0:02:47]} 9. d4 {[%clk 0:02:52]}  Be7 {[%clk 0:02:28]} 10. Nc3 {[%clk 0:02:51]}  O-O {[%clk 0:02:24]} 11. Rac1 {[%clk 0:02:40]}  Qxb3 {[%clk 0:02:21]} 12. axb3 {[%clk 0:02:39]}  Ne4 {[%clk 0:02:21]} 13. Nd2 {[%clk 0:02:34]}  Nxd2 {[%clk 0:02:07]} 14. Bxd2 {[%clk 0:02:34]}  Bb4 {[%clk 0:01:58]} 15. Rfd1 {[%clk 0:02:26]}  Nf6 {[%clk 0:01:33]} 16. Bg5 {[%clk 0:02:10]}  Be7 {[%clk 0:01:25]} 17. f3 {[%clk 0:02:03]}  h6 {[%clk 0:01:21]} 18. Bf4 {[%clk 0:01:59]}  Rfd8 {[%clk 0:01:15]} 19. Kf2 {[%clk 0:01:41]}  c5 {[%clk 0:01:10]} 20. Be3 {[%clk 0:01:12]}  cxd4 {[%clk 0:00:46]} 21. Bxd4 {[%clk 0:01:12]}  dxc4 {[%clk 0:00:46]} 22. bxc4 {[%clk 0:01:12]}  Rac8 {[%clk 0:00:38]} 23. e4 {[%clk 0:00:42]}  Bg6 {[%clk 0:00:36]} 24. Ne2 {[%clk 0:00:42]}  a6 {[%clk 0:00:31]} 25. Nf4 {[%clk 0:00:36]}  Bh7 {[%clk 0:00:31]} 26. Ne2 {[%clk 0:00:26]}  Nd7 {[%clk 0:00:29]} 27. Be3 {[%clk 0:00:22]}  Ne5 {[%clk 0:00:27]} 28. Rxd8+ {[%clk 0:00:21]}  Rxd8 {[%clk 0:00:28]} 29. Rc2 {[%clk 0:00:16]}  Bb4 {[%clk 0:00:24]} 30. c5 {[%clk 0:00:16]}  Rd1 {[%clk 0:00:20]} 31. Nd4 {[%clk 0:00:14]}  Rb1 {[%clk 0:00:13]} 32. Bf1 {[%clk 0:00:14]}  Nc6 {[%clk 0:00:11]} 33. Nxc6 {[%clk 0:00:13]}  bxc6 {[%clk 0:00:12]} 34. Bxa6 {[%clk 0:00:13]}  f5 {[%clk 0:00:13]} 35. Bd3 {[%clk 0:00:13]}  fxe4 {[%clk 0:00:12]} 36. Bxe4 {[%clk 0:00:14]}  Bxe4 {[%clk 0:00:12]} 37. fxe4 {[%clk 0:00:15]}  e5 {[%clk 0:00:12]} 38. Ke2 {[%clk 0:00:15]}  Kf7 {[%clk 0:00:11]} 39. Kd3 {[%clk 0:00:15]}  Ke6 {[%clk 0:00:12]} 40. Kc4 {[%clk 0:00:15]}  Ba5 {[%clk 0:00:12]} 41. Bd2 {[%clk 0:00:14]}  Bxd2 {[%clk 0:00:11]} 42. Rxd2 {[%clk 0:00:15]}  Rc1+ {[%clk 0:00:11]} 43. Kb4 {[%clk 0:00:15]}  Re1 {[%clk 0:00:11]} 44. Rd6+ {[%clk 0:00:15]}  Ke7 {[%clk 0:00:12]} 45. Rxc6 {[%clk 0:00:15]}  Rxe4+ {[%clk 0:00:13]} 46. Kc3 {[%clk 0:00:14]}  Re3+ {[%clk 0:00:13]} 47. Kc4 {[%clk 0:00:14]}  Re2 {[%clk 0:00:13]} 48. b4 {[%clk 0:00:15]}  Rxh2 {[%clk 0:00:13]} 49. b5 {[%clk 0:00:15]}  Rd2 {[%clk 0:00:11]} 50. b6 {[%clk 0:00:15]}  e4 {[%clk 0:00:12]} 51. b7 {[%clk 0:00:14]}  Rb2 {[%clk 0:00:08]} 52. Rb6 {[%clk 0:00:14]} 1-0


[Site "https://www.chess.com"]

[Event "Titled Tuesday Blitz June 13 Early 2023"]
[White "Pastar, Slaven"]
[Black "Aradhya, Garg"]
[WhiteFideId "14402718"]
[BlackFideId "25006746"]
[WhiteElo "2219"]
[BlackElo "2263"]
[Result "1-0"]
[Round "10"]
[TimeControl "180+2"]
[Date "2023.06.13"]
[WhiteClock "0:00:08"]
[BlackClock "0:00:13"]
[Board "42"]

1. b3 {[%clk 0:03:00]}  e5 {[%clk 0:02:57]} 2. Bb2 {[%clk 0:03:01]}  Nc6 {[%clk 0:02:56]} 3. Nf3 {[%clk 0:03:01]}  e4 {[%clk 0:02:55]} 4. Nd4 {[%clk 0:03:00]}  Nf6 {[%clk 0:02:56]} 5. e3 {[%clk 0:03:00]}  Bc5 {[%clk 0:02:54]} 6. Nxc6 {[%clk 0:02:59]}  dxc6 {[%clk 0:02:54]} 7. d4 {[%clk 0:03:00]}  exd3 {[%clk 0:02:38]} 8. Bxd3 {[%clk 0:02:59]}  Bg4 {[%clk 0:02:39]} 9. Be2 {[%clk 0:02:59]}  Qxd1+ {[%clk 0:02:38]} 10. Bxd1 {[%clk 0:02:56]}  Bxd1 {[%clk 0:02:38]} 11. Kxd1 {[%clk 0:02:57]}  O-O-O+ {[%clk 0:02:35]} 12. Ke2 {[%clk 0:02:57]}  Ne4 {[%clk 0:02:34]} 13. Bxg7 {[%clk 0:02:49]}  Rhg8 {[%clk 0:02:33]} 14. Be5 {[%clk 0:02:50]}  Rde8 {[%clk 0:02:19]} 15. Bg3 {[%clk 0:02:42]}  Bd4 {[%clk 0:02:19]} 16. c3 {[%clk 0:02:30]}  Bf6 {[%clk 0:02:09]} 17. Rc1 {[%clk 0:02:29]}  h5 {[%clk 0:02:08]} 18. f3 {[%clk 0:02:08]}  Nxg3+ {[%clk 0:02:08]} 19. hxg3 {[%clk 0:02:09]}  Rxg3 {[%clk 0:02:08]} 20. Rg1 {[%clk 0:00:34]}  Reg8 {[%clk 0:02:06]} 21. Kd3 {[%clk 0:00:27]}  Rxg2 {[%clk 0:01:57]} 22. Rxg2 {[%clk 0:00:26]}  Rxg2 {[%clk 0:01:58]} 23. Nd2 {[%clk 0:00:27]}  h4 {[%clk 0:01:59]} 24. Ne4 {[%clk 0:00:27]}  Be7 {[%clk 0:01:58]} 25. f4 {[%clk 0:00:20]}  h3 {[%clk 0:01:57]} 26. Rh1 {[%clk 0:00:20]}  h2 {[%clk 0:01:57]} 27. Nd2 {[%clk 0:00:20]}  Bh4 {[%clk 0:01:54]} 28. Nf1 {[%clk 0:00:17]}  Rxa2 {[%clk 0:01:53]} 29. Nxh2 {[%clk 0:00:13]}  Be7 {[%clk 0:01:51]} 30. Nf3 {[%clk 0:00:13]}  Rg2 {[%clk 0:01:24]} 31. Rh7 {[%clk 0:00:12]}  Rg3 {[%clk 0:01:13]} 32. Nd4 {[%clk 0:00:11]}  Bf6 {[%clk 0:01:03]} 33. Rxf7 {[%clk 0:00:10]}  Bxd4 {[%clk 0:01:03]} 34. cxd4 {[%clk 0:00:11]}  a5 {[%clk 0:01:00]} 35. f5 {[%clk 0:00:12]}  Kd8 {[%clk 0:01:00]} 36. f6 {[%clk 0:00:10]}  Rf3 {[%clk 0:00:56]} 37. Ke4 {[%clk 0:00:10]}  Rf1 {[%clk 0:00:56]} 38. Ke5 {[%clk 0:00:09]}  Re1 {[%clk 0:00:54]} 39. e4 {[%clk 0:00:08]}  b5 {[%clk 0:00:50]} 40. Rf8+ {[%clk 0:00:07]}  Kd7 {[%clk 0:00:50]} 41. Rf7+ {[%clk 0:00:08]}  Kd8 {[%clk 0:00:50]} 42. Rh7 {[%clk 0:00:08]}  Ke8 {[%clk 0:00:29]} 43. Rxc7 {[%clk 0:00:08]}  a4 {[%clk 0:00:28]} 44. bxa4 {[%clk 0:00:08]}  bxa4 {[%clk 0:00:29]} 45. Rxc6 {[%clk 0:00:08]}  a3 {[%clk 0:00:25]} 46. Ra6 {[%clk 0:00:08]}  Re3 {[%clk 0:00:25]} 47. Ra7 {[%clk 0:00:08]}  Kf8 {[%clk 0:00:20]} 48. d5 {[%clk 0:00:09]}  Rd3 {[%clk 0:00:16]} 49. Ke6 {[%clk 0:00:08]}  Kg8 {[%clk 0:00:16]} 50. Ra8+ {[%clk 0:00:07]}  Kh7 {[%clk 0:00:17]} 51. f7 {[%clk 0:00:08]}  Rf3 {[%clk 0:00:16]} 52. f8=Q {[%clk 0:00:08]}  Rxf8 {[%clk 0:00:13]} 53. Rxf8 {[%clk 0:00:08]} 1-0


[Site "https://www.chess.com"]

[Event "Titled Tuesday Blitz June 13 Early 2023"]
[White "Yelisieiev, Yevhenii"]
[Black "gau_npukyputb"]
[WhiteFideId "14139642"]
[WhiteElo "2403"]
[BlackElo "2720"]
[Result "0-1"]
[Round "10"]
[TimeControl "180+2"]
[Date "2023.06.13"]
[WhiteClock "0:00:00"]
[BlackClock "0:01:05"]
[Board "48"]

1. d4 {[%clk 0:03:00]}  Nf6 {[%clk 0:02:58]} 2. Nf3 {[%clk 0:03:01]}  d6 {[%clk 0:02:58]} 3. g3 {[%clk 0:03:00]}  Bf5 {[%clk 0:02:59]} 4. Bg2 {[%clk 0:03:00]}  c6 {[%clk 0:02:59]} 5. O-O {[%clk 0:03:01]}  Nbd7 {[%clk 0:02:59]} 6. b3 {[%clk 0:02:56]}  e5 {[%clk 0:02:58]} 7. dxe5 {[%clk 0:02:56]}  dxe5 {[%clk 0:02:59]} 8. Bb2 {[%clk 0:02:56]}  Qc7 {[%clk 0:02:59]} 9. Nbd2 {[%clk 0:02:46]}  Rd8 {[%clk 0:02:41]} 10. e4 {[%clk 0:02:11]}  Nxe4 {[%clk 0:02:37]} 11. Nxe4 {[%clk 0:02:00]}  Bxe4 {[%clk 0:02:38]} 12. Qe2 {[%clk 0:01:46]}  Bxf3 {[%clk 0:02:37]} 13. Bxf3 {[%clk 0:01:44]}  Bd6 {[%clk 0:02:37]} 14. Rad1 {[%clk 0:01:36]}  O-O {[%clk 0:02:37]} 15. Rfe1 {[%clk 0:01:35]}  Rfe8 {[%clk 0:02:36]} 16. Be4 {[%clk 0:01:17]}  Nf6 {[%clk 0:02:33]} 17. Bf5 {[%clk 0:01:14]}  h6 {[%clk 0:02:13]} 18. c4 {[%clk 0:01:14]}  a5 {[%clk 0:02:07]} 19. Qc2 {[%clk 0:01:03]}  Qe7 {[%clk 0:01:54]} 20. c5 {[%clk 0:00:54]}  Bc7 {[%clk 0:01:41]} 21. Rxd8 {[%clk 0:00:53]}  Rxd8 {[%clk 0:01:42]} 22. f4 {[%clk 0:00:52]}  Rd5 {[%clk 0:01:39]} 23. Kh1 {[%clk 0:00:12]}  Rxc5 {[%clk 0:01:20]} 24. Qe2 {[%clk 0:00:12]}  Rd5 {[%clk 0:01:09]} 25. fxe5 {[%clk 0:00:12]}  Nd7 {[%clk 0:01:09]} 26. Bxd7 {[%clk 0:00:10]}  Qxd7 {[%clk 0:01:08]} 27. e6 {[%clk 0:00:09]}  fxe6 {[%clk 0:01:07]} 28. Qxe6+ {[%clk 0:00:07]}  Qxe6 {[%clk 0:01:07]} 29. Rxe6 {[%clk 0:00:08]}  Rd1+ {[%clk 0:01:07]} 30. Kg2 {[%clk 0:00:03]}  Rd2+ {[%clk 0:01:07]} 31. Kf3 {[%clk 0:00:01]}  Rxb2 {[%clk 0:01:07]} 32. Re7 {[%clk 0:00:02]}  Bd6 {[%clk 0:01:06]} 33. Rxb7 {[%clk 0:00:03]}  Rxa2 {[%clk 0:01:06]} 34. Rb6 {[%clk 0:00:02]}  Rxh2 {[%clk 0:01:05]} 35. Rxc6 {[%clk 0:00:00]}  Bb4 {[%clk 0:01:05]} 0-1


[Site "https://www.chess.com"]

[Event "Titled Tuesday Blitz June 13 Early 2023"]
[White "Rastbod, Ali"]
[Black "Shubenkova, Veronika"]
[WhiteFideId "12567477"]
[BlackFideId "44124040"]
[WhiteElo "2281"]
[BlackElo "2060"]
[Result "0-1"]
[Round "10"]
[TimeControl "180+2"]
[Date "2023.06.13"]
[WhiteClock "0:00:00"]
[BlackClock "0:00:24"]
[Board "49"]

1. Nf3 {[%clk 0:03:00]}  d5 {[%clk 0:02:59]} 2. c4 {[%clk 0:03:00]}  c6 {[%clk 0:02:59]} 3. g3 {[%clk 0:02:59]}  e6 {[%clk 0:02:59]} 4. Bg2 {[%clk 0:02:59]}  f5 {[%clk 0:02:59]} 5. O-O {[%clk 0:02:59]}  Nf6 {[%clk 0:02:59]} 6. d3 {[%clk 0:03:00]}  d4 {[%clk 0:02:59]} 7. e3 {[%clk 0:03:00]}  dxe3 {[%clk 0:02:56]} 8. Bxe3 {[%clk 0:03:01]}  Be7 {[%clk 0:02:55]} 9. d4 {[%clk 0:02:57]}  O-O {[%clk 0:02:55]} 10. Nc3 {[%clk 0:02:57]}  Re8 {[%clk 0:02:53]} 11. Re1 {[%clk 0:02:57]}  Nbd7 {[%clk 0:02:51]} 12. Bf4 {[%clk 0:02:56]}  Nf8 {[%clk 0:02:51]} 13. Qb3 {[%clk 0:02:53]}  a5 {[%clk 0:02:47]} 14. Rad1 {[%clk 0:02:52]}  Ra6 {[%clk 0:02:41]} 15. Na4 {[%clk 0:02:38]}  Ng6 {[%clk 0:02:34]} 16. Bc1 {[%clk 0:02:21]}  Qc7 {[%clk 0:02:22]} 17. h4 {[%clk 0:02:13]}  f4 {[%clk 0:02:15]} 18. Ng5 {[%clk 0:02:08]}  fxg3 {[%clk 0:02:08]} 19. Qxg3 {[%clk 0:02:09]}  Bd6 {[%clk 0:02:02]} 20. Qb3 {[%clk 0:02:05]}  b5 {[%clk 0:01:56]} 21. cxb5 {[%clk 0:02:01]}  cxb5 {[%clk 0:01:55]} 22. Nc5 {[%clk 0:01:58]}  Bxc5 {[%clk 0:01:26]} 23. dxc5 {[%clk 0:01:59]}  Nxh4 {[%clk 0:01:24]} 24. Bh3 {[%clk 0:00:46]}  Qxc5 {[%clk 0:01:17]} 25. Qg3 {[%clk 0:00:42]}  Nf5 {[%clk 0:01:03]} 26. Qe5 {[%clk 0:00:26]}  Qxe5 {[%clk 0:00:51]} 27. Rxe5 {[%clk 0:00:27]}  Nh4 {[%clk 0:00:43]} 28. Rxb5 {[%clk 0:00:22]}  h6 {[%clk 0:00:41]} 29. Rd4 {[%clk 0:00:02]}  hxg5 {[%clk 0:00:40]} 30. Kf1 {[%clk 0:00:03]}  Rc6 {[%clk 0:00:38]} 31. Bxg5 {[%clk 0:00:02]}  Nf3 {[%clk 0:00:35]} 32. Rd3 {[%clk 0:00:01]}  Nxg5 {[%clk 0:00:34]} 33. Bg2 {[%clk 0:00:01]}  Rc1+ {[%clk 0:00:31]} 34. Ke2 {[%clk 0:00:02]}  Ba6 {[%clk 0:00:31]} 35. Rxa5 {[%clk 0:00:01]}  Rc2+ {[%clk 0:00:29]} 36. Ke3 {[%clk 0:00:01]}  Bxd3 {[%clk 0:00:27]} 37. Rxg5 {[%clk 0:00:00]}  Bf5 {[%clk 0:00:24]} 0-1


[Site "https://www.chess.com"]

[Event "Titled Tuesday Blitz June 13 Early 2023"]
[White "Mohammad Fahad, Rahman"]
[Black "Jovic, Stanoje"]
[WhiteFideId "10207791"]
[BlackFideId "905020"]
[WhiteElo "2339"]
[BlackElo "2236"]
[Result "1-0"]
[Round "10"]
[TimeControl "180+2"]
[Date "2023.06.13"]
[WhiteClock "0:01:25"]
[BlackClock "0:00:00"]
[Board "51"]

1. Nf3 {[%clk 0:02:55]}  Nf6 {[%clk 0:02:59]} 2. g3 {[%clk 0:02:55]}  b5 {[%clk 0:02:59]} 3. Bg2 {[%clk 0:02:53]}  Bb7 {[%clk 0:02:58]} 4. Na3 {[%clk 0:02:53]}  b4 {[%clk 0:02:53]} 5. Nc4 {[%clk 0:02:53]}  a5 {[%clk 0:02:49]} 6. O-O {[%clk 0:02:52]}  d5 {[%clk 0:02:46]} 7. Nce5 {[%clk 0:02:51]}  c5 {[%clk 0:02:44]} 8. Ng5 {[%clk 0:02:51]}  Qb6 {[%clk 0:02:29]} 9. Ngxf7 {[%clk 0:02:42]}  Rg8 {[%clk 0:02:27]} 10. d4 {[%clk 0:02:32]}  cxd4 {[%clk 0:02:18]} 11. Bf4 {[%clk 0:02:32]}  h6 {[%clk 0:02:06]} 12. h4 {[%clk 0:02:32]}  Na6 {[%clk 0:01:54]} 13. Bh3 {[%clk 0:02:26]}  e6 {[%clk 0:01:42]} 14. e3 {[%clk 0:02:23]}  Bc5 {[%clk 0:01:38]} 15. exd4 {[%clk 0:01:56]}  Bxd4 {[%clk 0:01:36]} 16. Nd6+ {[%clk 0:01:50]}  Qxd6 {[%clk 0:01:00]} 17. Qxd4 {[%clk 0:01:50]}  g5 {[%clk 0:00:54]} 18. hxg5 {[%clk 0:01:44]}  hxg5 {[%clk 0:00:55]} 19. Nc4 {[%clk 0:01:33]}  Qxf4 {[%clk 0:00:26]} 20. gxf4 {[%clk 0:01:33]}  gxf4+ {[%clk 0:00:26]} 21. Kh2 {[%clk 0:01:33]}  Ke7 {[%clk 0:00:20]} 22. Qb6 {[%clk 0:01:29]}  Ng4+ {[%clk 0:00:11]} 23. Bxg4 {[%clk 0:01:29]}  Rxg4 {[%clk 0:00:11]} 24. Qxb7+ {[%clk 0:01:29]}  Nc7 {[%clk 0:00:11]} 25. Qxc7+ {[%clk 0:01:30]}  Kf6 {[%clk 0:00:10]} 26. Qe5+ {[%clk 0:01:29]}  Ke7 {[%clk 0:00:03]} 27. Qd6+ {[%clk 0:01:28]}  Kf6 {[%clk 0:00:02]} 28. Qe5+ {[%clk 0:01:28]}  Ke7 {[%clk 0:00:00]} 29. Rg1 {[%clk 0:01:25]} 1-0


[Site "https://www.chess.com"]

[Event "Titled Tuesday Blitz June 13 Early 2023"]
[White "Petukhov, Dmitry"]
[Black "Timerkhanov, Alexander"]
[WhiteFideId "4142748"]
[BlackFideId "24177938"]
[WhiteElo "2311"]
[BlackElo "2278"]
[Result "0-1"]
[Round "10"]
[TimeControl "180+2"]
[Date "2023.06.13"]
[WhiteClock "0:00:31"]
[BlackClock "0:01:56"]
[Board "52"]

1. e4 {[%clk 0:03:00]}  c5 {[%clk 0:02:59]} 2. c3 {[%clk 0:02:58]}  d5 {[%clk 0:02:58]} 3. exd5 {[%clk 0:02:56]}  Qxd5 {[%clk 0:02:59]} 4. d4 {[%clk 0:02:55]}  Nf6 {[%clk 0:02:57]} 5. Nf3 {[%clk 0:02:53]}  Nc6 {[%clk 0:02:55]} 6. Be2 {[%clk 0:02:52]}  e6 {[%clk 0:02:52]} 7. O-O {[%clk 0:02:48]}  Be7 {[%clk 0:02:52]} 8. Be3 {[%clk 0:02:42]}  cxd4 {[%clk 0:02:52]} 9. cxd4 {[%clk 0:02:42]}  a6 {[%clk 0:02:52]} 10. Nc3 {[%clk 0:02:39]}  Qd6 {[%clk 0:02:52]} 11. a3 {[%clk 0:02:32]}  O-O {[%clk 0:02:51]} 12. b4 {[%clk 0:02:32]}  b5 {[%clk 0:02:51]} 13. Qb3 {[%clk 0:02:26]}  Bb7 {[%clk 0:02:50]} 14. Rfd1 {[%clk 0:02:22]}  Rac8 {[%clk 0:02:50]} 15. Rac1 {[%clk 0:02:10]}  Rfd8 {[%clk 0:02:47]} 16. h3 {[%clk 0:02:10]}  h6 {[%clk 0:02:45]} 17. Bf1 {[%clk 0:02:07]}  Bf8 {[%clk 0:02:45]} 18. Ne2 {[%clk 0:01:57]}  Nd5 {[%clk 0:02:39]} 19. Ng3 {[%clk 0:01:52]}  Nxe3 {[%clk 0:02:36]} 20. fxe3 {[%clk 0:01:53]}  Qxg3 {[%clk 0:02:34]} 21. e4 {[%clk 0:01:42]}  Ne7 {[%clk 0:02:22]} 22. Qe3 {[%clk 0:01:32]}  Ng6 {[%clk 0:02:16]} 23. Kh1 {[%clk 0:01:21]}  Bd6 {[%clk 0:02:13]} 24. e5 {[%clk 0:01:15]}  Be7 {[%clk 0:02:12]} 25. Bd3 {[%clk 0:00:49]}  Nf4 {[%clk 0:02:05]} 26. Bf1 {[%clk 0:00:44]}  Nxh3 {[%clk 0:02:01]} 27. Qe1 {[%clk 0:00:44]}  Nf2+ {[%clk 0:01:57]} 28. Kg1 {[%clk 0:00:31]}  Bxf3 {[%clk 0:01:56]} 0-1


[Site "https://www.chess.com"]

[Event "Titled Tuesday Blitz June 13 Early 2023"]
[White "Vyatkin, Dmitry"]
[Black "Arabidze, Meri"]
[WhiteFideId "4171900"]
[BlackFideId "13604040"]
[WhiteElo "2279"]
[BlackElo "2405"]
[Result "0-1"]
[Round "10"]
[TimeControl "180+2"]
[Date "2023.06.13"]
[WhiteClock "0:00:00"]
[BlackClock "0:00:11"]
[Board "53"]

1. d4 {[%clk 0:02:59]}  Nf6 {[%clk 0:02:58]} 2. c4 {[%clk 0:02:58]}  e6 {[%clk 0:02:58]} 3. g3 {[%clk 0:02:58]}  Bb4+ {[%clk 0:02:56]} 4. Bd2 {[%clk 0:02:57]}  Qe7 {[%clk 0:02:56]} 5. Bg2 {[%clk 0:02:56]}  Nc6 {[%clk 0:02:56]} 6. a3 {[%clk 0:02:44]}  Bxd2+ {[%clk 0:02:52]} 7. Qxd2 {[%clk 0:02:45]}  e5 {[%clk 0:02:45]} 8. d5 {[%clk 0:02:43]}  Nd4 {[%clk 0:02:45]} 9. Qc3 {[%clk 0:02:29]}  d6 {[%clk 0:02:44]} 10. e3 {[%clk 0:02:29]}  Nf5 {[%clk 0:02:44]} 11. Nd2 {[%clk 0:02:24]}  h5 {[%clk 0:02:40]} 12. h3 {[%clk 0:02:18]}  Bd7 {[%clk 0:02:08]} 13. Ne2 {[%clk 0:02:17]}  c6 {[%clk 0:02:02]} 14. e4 {[%clk 0:02:14]}  Nh6 {[%clk 0:01:58]} 15. h4 {[%clk 0:02:06]}  cxd5 {[%clk 0:01:21]} 16. cxd5 {[%clk 0:02:06]}  Bb5 {[%clk 0:01:21]} 17. a4 {[%clk 0:01:50]}  Ba6 {[%clk 0:01:21]} 18. b4 {[%clk 0:01:50]}  Bxe2 {[%clk 0:01:21]} 19. Kxe2 {[%clk 0:01:50]}  O-O {[%clk 0:01:21]} 20. Rhc1 {[%clk 0:01:45]}  Rad8 {[%clk 0:01:14]} 21. Kf1 {[%clk 0:01:44]}  Nfg4 {[%clk 0:01:00]} 22. f3 {[%clk 0:01:42]}  Nf6 {[%clk 0:01:00]} 23. Kg1 {[%clk 0:01:41]}  Nd7 {[%clk 0:00:59]} 24. Bh3 {[%clk 0:01:32]}  f5 {[%clk 0:00:58]} 25. Qe3 {[%clk 0:01:10]}  f4 {[%clk 0:00:57]} 26. Qf2 {[%clk 0:01:10]}  g5 {[%clk 0:00:55]} 27. Be6+ {[%clk 0:01:06]}  Kh8 {[%clk 0:00:51]} 28. g4 {[%clk 0:00:54]}  gxh4 {[%clk 0:00:37]} 29. gxh5 {[%clk 0:00:54]}  Rg8+ {[%clk 0:00:34]} 30. Kf1 {[%clk 0:00:46]}  Rg3 {[%clk 0:00:32]} 31. Ke2 {[%clk 0:00:40]}  Nf8 {[%clk 0:00:30]} 32. Rh1 {[%clk 0:00:35]}  Nxe6 {[%clk 0:00:30]} 33. dxe6 {[%clk 0:00:35]}  Rdg8 {[%clk 0:00:27]} 34. Rh2 {[%clk 0:00:35]}  Qxe6 {[%clk 0:00:27]} 35. Rc1 {[%clk 0:00:23]}  Qd7 {[%clk 0:00:23]} 36. b5 {[%clk 0:00:22]}  a6 {[%clk 0:00:23]} 37. Qb6 {[%clk 0:00:15]}  Rg2+ {[%clk 0:00:21]} 38. Rxg2 {[%clk 0:00:16]}  Rxg2+ {[%clk 0:00:22]} 39. Kd3 {[%clk 0:00:16]}  h3 {[%clk 0:00:16]} 40. Rc7 {[%clk 0:00:15]}  Qe6 {[%clk 0:00:13]} 41. Qxb7 {[%clk 0:00:09]}  axb5 {[%clk 0:00:10]} 42. a5 {[%clk 0:00:06]}  h2 {[%clk 0:00:10]} 43. Rh7+ {[%clk 0:00:05]}  Kg8 {[%clk 0:00:09]} 44. Rd7 {[%clk 0:00:04]}  Kh8 {[%clk 0:00:09]} 45. Rh7+ {[%clk 0:00:04]}  Kg8 {[%clk 0:00:09]} 46. Rc7 {[%clk 0:00:04]}  Rxd2+ {[%clk 0:00:08]} 47. Kxd2 {[%clk 0:00:04]}  Qa2+ {[%clk 0:00:08]} 48. Kd3 {[%clk 0:00:04]}  Qb3+ {[%clk 0:00:09]} 49. Kd2 {[%clk 0:00:04]}  Qb2+ {[%clk 0:00:09]} 50. Kd3 {[%clk 0:00:04]}  Qb1+ {[%clk 0:00:09]} 51. Kc3 {[%clk 0:00:04]}  Qc1+ {[%clk 0:00:09]} 52. Kd3 {[%clk 0:00:03]}  Qxc7 {[%clk 0:00:09]} 53. Qxc7 {[%clk 0:00:03]}  h1=Q {[%clk 0:00:10]} 54. a6 {[%clk 0:00:02]}  Qd1+ {[%clk 0:00:10]} 55. Kc3 {[%clk 0:00:01]}  Qc1+ {[%clk 0:00:11]} 56. Kb4 {[%clk 0:00:00]}  Qxc7 {[%clk 0:00:11]} 0-1


[Site "https://www.chess.com"]